fUST/lending_fUST_20240729
["ID","MTS","AMOUNT","RATE_DAILY","PERIOD"]
[333583434,1722258643085,-150.83359321,0.00013111,2]
[333583436,1722258643096,-4503.66999891,0.00013201,2]
[333583438,1722258643105,-336.61580579,0.00013283,2]
[333583440,1722258643117,-150.83359321,0.00013354,2]
[333583454,1722258643262,-2167.01991563,0.00013488,2]
[333583456,1722258643275,-150.112233,0.000135,2]
[333583458,1722258643284,-20822.07754866,0.00013578,2]
[333583586,1722258644794,180.29524211,9.999e-05,2]
[333585064,1722258680682,375.64530467,9.999e-05,2]
[333585065,1722258758848,169.80150805,9.999e-05,2]
[333585067,1722258807319,8707.16909317,9.999e-05,2]
[333585068,1722258821606,189.88030954,9.999e-05,2]
[333585069,1722258824812,3782.59755445,9.999e-05,2]
[333585070,1722258829239,16274.21667808,9.999e-05,2]
[333585071,1722258844758,533.38063441,9.999e-05,2]
[333585072,1722258847017,2107.09834524,9.999e-05,2]
[333585073,1722258940920,208.55751505,9.999e-05,2]
[333585074,1722259002638,4708.68993712,9.999e-05,2]
[333585075,1722259022029,2107.09834524,9.999e-05,2]
[333585076,1722259029819,3782.59755445,9.999e-05,2]
[333585077,1722259038252,16274.21667808,9.999e-05,2]
[333585123,1722259079254,1625.88982265,9.999e-05,2]
[333585444,1722259112649,4708.68993712,9.999e-05,2]
[333585445,1722259124780,154.69833824,9.999e-05,2]
[333585446,1722259138238,3782.59755445,9.999e-05,2]
[333585447,1722259153253,8347.65712072,9.999e-05,2]
[333585448,1722259231774,154.744625,9.999e-05,2]
[333585449,1722259411203,386.77258205,9.999e-05,2]
[333585450,1722259505553,250.0,9.8e-05,2]
[333585515,1722259746180,-252.98985031,0.00010432,2]
[333585516,1722259746207,-250.0,0.00010482,2]
[333585517,1722259746233,-250.0,0.00010511,2]
[333585518,1722259746258,-191.51035431,0.00010532,2]
[333585519,1722259746284,-250.0,0.0001054,2]
[333585520,1722259746310,-250.0,0.00010568,2]
[333585521,1722259746338,-250.0,0.00010597,2]
[333585522,1722259746364,-124.0196298,0.00010626,2]
[333585567,1722259834127,-174.11486602,0.00010332,2]
[333585569,1722259834137,-125.9803702,0.00010626,2]
[333585571,1722259834146,-203.5595215,0.00010632,2]
[333585573,1722259834159,-250.0,0.00010655,2]
[333585575,1722259834169,-157.04524228,0.00010683,2]
[333585577,1722259834182,-92.95475772,0.00010683,2]
[333585579,1722259834191,-250.0,0.00010712,2]
[333585582,1722259834202,-250.0,0.00010741,2]
[333585584,1722259834211,-250.0,0.0001077,2]
[333585586,1722259834221,-250.0,0.00010798,2]
[333585588,1722259834231,-250.0,0.00010827,2]
[333585590,1722259834242,-250.0,0.00010856,2]
[333585592,1722259834252,-978.72636664,0.00010859,2]
[333585594,1722259834262,-250.0,0.00010885,2]
[333585596,1722259834272,-250.0,0.00010913,2]
[333585598,1722259834282,-250.0,0.00010942,2]
[333585600,1722259834292,-300.0,0.00010958,2]
[333585602,1722259834302,-300.0,0.00010958,2]
[333585604,1722259834312,-527.88,0.00010959,2]
[333585606,1722259834322,-439.9,0.00010959,2]
[333585608,1722259834332,-250.0,0.00010971,2]
[333585611,1722259834345,-250.0,0.00010999,2]
[333585613,1722259834354,-250.0,0.00011028,2]
[333585615,1722259834364,-24900.0,0.00011382,2]
[333585617,1722259834373,-420.0,0.00012042,2]
[333585619,1722259834383,-420.0,0.00012054,2]
[333585621,1722259834393,-154.69833824,0.00012119,2]
[333585623,1722259834409,-456.32261951,0.0001212,2]
[333585625,1722259834418,-2167.01991563,0.0001212,2]
[333585627,1722259834428,-166.666666,0.00012251,2]
[333585628,1722259834437,-3725.76065408,0.000125,2]
[333585631,1722259834450,-166.666666,0.00012585,2]
[333585632,1722259834459,-261.55346401,0.0001288,2]
[333585634,1722259834469,-2783.48898421,0.000129,2]
[333585636,1722259834478,-166.666666,0.00012919,2]
[333585638,1722259834488,-200.0,0.00012986,2]
[333585640,1722259834498,-5309.48206098,0.00013221,2]
[333585642,1722259834507,-587.0,0.00013233,2]
[333585644,1722259834517,-166.666666,0.00013253,2]
[333585646,1722259834529,-587.0,0.00013259,2]
[333585648,1722259834538,-336.61580579,0.00013279,2]
[333585650,1722259834548,-776.27053881,0.00013365,2]
[333585652,1722259834558,-163.44884139,0.00013487,2]
[333585654,1722259834568,-2091.23726137,0.000135,2]
[333585656,1722259834577,-1000.0,0.0001354,2]
[333585658,1722259834587,-163.44884138,0.00013543,2]
[333585660,1722259834596,-27457.94693938,0.00013578,2]
[333585987,1722259840252,-3490.44702973,0.00013578,2]
[333586034,1722259843018,-3002.88983732,0.00013578,2]
[333586371,1722259846559,-2.73876405,0.00013578,2]
[333586372,1722259846588,-652.4,0.00013578,2]
[333586402,1722260451575,157.72474138,9.999e-05,2]
[333586434,1722260569353,7445.81872161,9.999e-05,2]
[333586435,1722260584136,375.79677847,9.999e-05,2]
[333586436,1722260595987,341.87248912,9.999e-05,2]
[333586437,1722260687753,154.80649189,9.999e-05,2]
[333586438,1722260715021,341.52012972,9.999e-05,2]
[333586439,1722260728156,375.79677847,9.999e-05,2]
[333586440,1722260789873,154.88678402,9.999e-05,2]
[333586441,1722260809171,-300.0,0.00010589,2]
[333586442,1722260809194,-70.28040692,0.00010589,2]
[333586443,1722260817259,157.72474138,9.999e-05,2]
[333586470,1722260864016,600.24609405,9.999e-05,2]
[333586471,1722260865784,156.44936091,9.999e-05,2]
[333586472,1722260874216,375.34235707,9.999e-05,2]
[333586473,1722260875614,154.80649189,9.999e-05,2]
[333586474,1722260877774,727.02832733,9.999e-05,2]
[333586475,1722260900002,273.57313143,9.999e-05,2]
[333586476,1722260905070,942.12512916,9.999e-05,2]
[333586477,1722260905790,267.50731086,0.0001,2]
[333586478,1722260909898,533.38063441,9.999e-05,2]
[333586479,1722260915957,542.70996312,9.999e-05,2]
[333586480,1722260916694,568.27807593,9.999e-05,2]
[333586481,1722260916871,196.33497966,9.999e-05,2]
[333586482,1722260917168,531.35557493,9.999e-05,2]
[333586483,1722260918142,303.06956169,9.999e-05,2]
[333586484,1722260918330,156.65797586,9.999e-05,2]
[333586485,1722260919028,224.53397514,9.999e-05,2]
[333586486,1722260921246,157.72474138,9.999e-05,2]
[333586487,1722260921505,154.76012181,9.999e-05,2]
[333586488,1722260924819,806.45186026,9.999e-05,2]
[333586489,1722260926074,162.95665863,9.999e-05,2]
[333586490,1722260926109,309.27320796,9.999e-05,2]
[333586491,1722260926583,287.48002697,0.0001,2]
[333586492,1722260928129,288.23560711,9.999e-05,2]
[333586493,1722260930012,154.82188073,9.999e-05,2]
[333586494,1722260930388,154.80649189,9.999e-05,2]
[333586495,1722260933639,783.26953764,9.999e-05,2]
[333586496,1722260934300,813.00772694,9.999e-05,2]
[333586497,1722260939492,154.80649189,9.999e-05,2]
[333586498,1722260947026,201.51415095,9.999e-05,2]
[333586499,1722260948619,404.47935249,9.999e-05,2]
[333586500,1722260949370,813.00772694,9.999e-05,2]
[333586501,1722260954051,521.86930577,9.999e-05,2]
[333586502,1722260956550,204.43824148,0.0001,2]
[333586503,1722260958530,160.00381439,9.999e-05,2]
[333586504,1722260964705,240.55889109,9.999e-05,2]
[333586505,1722260965655,156.62454437,9.999e-05,2]
[333586506,1722260966475,188.04294313,9.999e-05,2]
[333586507,1722260971362,162.28894778,9.999e-05,2]
[333586508,1722260971878,154.69833824,9.999e-05,2]
[333586509,1722260974090,154.80649189,9.999e-05,2]
[333586510,1722260977709,248.83425172,9.999e-05,2]
[333586511,1722260982050,1029.14408046,9.999e-05,2]
[333586521,1722260982794,289.59199175,9.999e-05,2]
[333586524,1722260985944,848.96464521,9.999e-05,2]
[333586525,1722260986382,162.35915212,9.999e-05,2]
[333586526,1722260989634,154.80649189,9.999e-05,2]
[333586527,1722260995955,268.71596496,9.999e-05,2]
[333586528,1722261000957,848.96464521,9.999e-05,2]
[333586529,1722261001644,403.4655861,9.999e-05,2]
[333586530,1722261006253,309.35688972,9.999e-05,2]
[333586531,1722261006618,414.61537087,9.999e-05,2]
[333586535,1722261009860,663.78880537,9.999e-05,2]
[333586536,1722261012968,542.80213457,9.999e-05,2]
[333586537,1722261019828,806.45186026,9.999e-05,2]
[333586538,1722261020087,567.70648841,9.999e-05,2]
[333586539,1722261021563,304.52049507,9.999e-05,2]
[333586541,1722261027723,199.89785629,9.999e-05,2]
[333586542,1722261027849,493.97936365,9.999e-05,2]
[333586615,1722261033084,-300.0,0.00010589,2]
[333586617,1722261033095,-2167.01991563,0.00010589,2]
[333586619,1722261033105,-300.0,0.00010589,2]
[333586621,1722261033115,-3174.29087301,0.0001059,2]
[333587073,1722261037941,404.47935249,9.999e-05,2]
[333587093,1722261038315,157.6164939,9.999e-05,2]
[333587117,1722261039003,-21725.70912699,0.0001059,2]
[333587118,1722261039013,-250.0,0.00010591,2]
[333587119,1722261039024,-366.58,0.00010959,2]
[333587120,1722261039036,-366.58,0.00010959,2]
[333587121,1722261039045,-244.39,0.00010959,2]
[333587122,1722261039053,-203.66,0.00010959,2]
[333587123,1722261039063,-169.71,0.00010959,2]
[333587124,1722261039072,-848.6,0.00010959,2]
[333587125,1722261039082,-166.666666,0.00010959,2]
[333587126,1722261039091,-166.666666,0.00011253,2]
[333587127,1722261039101,-250.0,0.00011487,2]
[333587128,1722261039110,-250.0,0.00011518,2]
[333587130,1722261039119,-166.666666,0.00011546,2]
[333587131,1722261039129,-250.0,0.0001155,2]
[333587132,1722261039138,-250.0,0.00011581,2]
[333587133,1722261039147,-250.0,0.00011613,2]
[333587134,1722261039157,-420.0,0.00011641,2]
[333587135,1722261039166,-250.0,0.00011644,2]
[333587136,1722261039176,-420.0,0.00011648,2]
[333587137,1722261039185,-250.0,0.00011676,2]
[333587138,1722261039195,-250.0,0.00011707,2]
[333587139,1722261039204,-250.0,0.00011739,2]
[333587140,1722261039213,-250.0,0.0001177,2]
[333587141,1722261039223,-250.0,0.00011802,2]
[333587142,1722261039232,-250.0,0.00011833,2]
[333587143,1722261039242,-166.666666,0.0001184,2]
[333587144,1722261039251,-250.0,0.00011865,2]
[333587145,1722261039260,-250.0,0.00011896,2]
[333587146,1722261039269,-250.0,0.00011928,2]
[333587147,1722261039282,-250.0,0.0001196,2]
[333587148,1722261039291,-250.0,0.00011991,2]
[333587149,1722261039300,-250.0,0.00012023,2]
[333587150,1722261039310,-250.0,0.00012054,2]
[333587152,1722261039319,-250.0,0.00012086,2]
[333587154,1722261039328,-521.86930577,0.0001212,2]
[333587156,1722261039338,-162.84721699,0.0001212,2]
[333587158,1722261039348,-154.78708112,0.0001212,2]
[333587160,1722261039358,-319.5081595,0.0001212,2]
[333587162,1722261039368,-156.52144763,0.0001212,2]
[333587165,1722261039378,-519.24134864,0.0001212,2]
[333587167,1722261039388,-154.69833824,0.0001212,2]
[333587169,1722261039398,-600.83772694,0.0001212,2]
[333587171,1722261039408,-240.09796077,0.0001212,2]
[333587173,1722261039417,-201.33899394,0.0001212,2]
[333587175,1722261039427,-154.69833824,0.0001212,2]
[333587177,1722261039436,-195.85959936,0.0001212,2]
[333587179,1722261039446,-166.666666,0.00012134,2]
[333587181,1722261039455,-166.666666,0.00012427,2]
[333587183,1722261039466,-587.0,0.00012798,2]
[333587185,1722261039475,-587.0,0.00012813,2]
[333587187,1722261039485,-200.0,0.00012986,2]
[333587189,1722261039495,-5309.48206098,0.00013242,2]
[333587191,1722261039504,-336.6158058,0.00013362,2]
[333587193,1722261039514,-230.0130703,0.00013478,2]
[333587195,1722261039524,-2.58511679,0.00013483,2]
[333587269,1722261040447,-227.42795348,0.00013483,2]
[333587270,1722261040457,-230.01307027,0.00013488,2]
[333587271,1722261040466,-230.01307027,0.00013493,2]
[333587272,1722261040475,-230.01307027,0.00013498,2]
[333587273,1722261040485,-18527.26632691,0.00013568,2]
[333587274,1722261040535,-13860.0,0.00013568,2]
[333587275,1722261040548,-1572.44479459,0.00013568,2]
[333587276,1722261040557,-369.41124557,0.00013578,5]
[333587277,1722261040567,-58251.32775495,0.00013578,2]
[333587278,1722261040576,-151.0,0.00013578,2]
[333587279,1722261040586,-151.0,0.00013578,2]
[333587280,1722261040595,-1044.519844,0.00013578,2]
[333587281,1722261040605,-1044.519844,0.00013578,2]
[333587282,1722261040614,-151.0,0.00013578,2]
[333587283,1722261040624,-151.0,0.00013578,2]
[333587284,1722261040633,-151.0,0.00013578,2]
[333587285,1722261040642,-1485.796612,0.00013578,2]
[333587286,1722261040651,-1485.796612,0.00013578,2]
[333587287,1722261040661,-2274.274554,0.00013578,2]
[333587288,1722261040670,-151.005796,0.00013578,2]
[333587289,1722261040679,-67919.4222429,0.00013578,2]
[333587290,1722261040688,-151.0,0.00013588,2]
[333587291,1722261040697,-151.0,0.00013588,2]
[333587292,1722261040707,-151.0,0.00013588,2]
[333587293,1722261040717,-151.0,0.00013588,2]
[333587294,1722261040726,-151.0,0.00013588,2]
[333587295,1722261040735,-151.0,0.00013588,2]
[333587296,1722261040745,-151.0,0.00013588,2]
[333587297,1722261040754,-151.0,0.00013588,2]
[333587298,1722261040764,-151.0,0.00013588,2]
[333587299,1722261040773,-151.0,0.00013588,2]
[333587300,1722261040785,-151.0,0.00013588,2]
[333587301,1722261040794,-151.0,0.00013588,2]
[333587302,1722261040804,-151.0,0.00013588,2]
[333587303,1722261040814,-151.0,0.00013588,2]
[333587304,1722261040823,-151.0,0.00013588,2]
[333587305,1722261040832,-151.0,0.00013588,2]
[333587306,1722261040842,-498.774569,0.00013588,2]
[333587307,1722261040851,-498.774569,0.00013588,2]
[333587308,1722261040864,-174.404527,0.00013588,2]
[333587309,1722261040873,-174.404527,0.00013588,2]
[333587310,1722261040882,-486.814924,0.00013588,2]
[333587311,1722261040892,-151.0,0.00013588,2]
[333587312,1722261040902,-486.814924,0.00013588,2]
[333587313,1722261040913,-269.379751,0.00013588,2]
[333587314,1722261040923,-151.0,0.00013588,2]
[333587315,1722261040932,-151.0,0.00013588,2]
[333587316,1722261040944,-477.010319,0.00013588,2]
[333587317,1722261041051,-151.0,0.00013588,2]
[333587318,1722261041063,-151.0,0.00013588,2]
[333587319,1722261041073,-477.010319,0.00013588,2]
[333587320,1722261041083,-151.0,0.00013588,2]
[333587321,1722261041093,-1294.137486,0.00013588,2]
[333587322,1722261041103,-1294.137486,0.00013588,2]
[333587323,1722261041113,-151.0,0.00013588,2]
[333587324,1722261041123,-151.0,0.00013588,2]
[333587325,1722261041134,-151.0,0.00013588,2]
[333587326,1722261041144,-1044.519844,0.00013588,2]
[333587327,1722261041155,-1044.519844,0.00013588,2]
[333587328,1722261041164,-151.0,0.00013588,2]
[333587329,1722261041174,-151.0,0.00013588,2]
[333587330,1722261041183,-151.0,0.00013588,2]
[333587331,1722261041193,-1485.796612,0.00013588,2]
[333587332,1722261041202,-1485.796612,0.00013588,2]
[333587333,1722261041211,-2274.274554,0.00013588,2]
[333587334,1722261041221,-88888.0,0.00013588,2]
[333587335,1722261041234,-887.20735581,0.00013598,2]
[333587336,1722261041245,-200.0,0.00013598,2]
[333587337,1722261041256,-2000.0,0.00013598,2]
[333587338,1722261041266,-355.3061935,0.000136,2]
[333587339,1722261041276,-5197.67980856,0.000136,2]
[333587340,1722261041288,-150.112233,0.000136,2]
[333587341,1722261041298,-150.112233,0.000136,2]
[333587342,1722261041307,-150.112233,0.000136,2]
[333587343,1722261041317,-150.112233,0.000136,2]
[333587344,1722261041326,-150.112233,0.000136,2]
[333587345,1722261041336,-150.112233,0.000136,2]
[333587346,1722261041345,-150.112233,0.000136,2]
[333587347,1722261041354,-150.112233,0.000136,2]
[333587348,1722261041364,-150.112233,0.000136,2]
[333587349,1722261041374,-527.70978985,0.000136,2]
[333587350,1722261041383,-150.112233,0.000136,2]
[333587351,1722261041392,-150.112233,0.000136,2]
[333587352,1722261041402,-150.112233,0.000136,2]
[333587353,1722261041411,-150.112233,0.000136,2]
[333587354,1722261041421,-150.112233,0.000136,2]
[333587355,1722261041431,-150.112233,0.000136,2]
[333587356,1722261041440,-150.112233,0.000136,2]
[333587357,1722261041450,-33959.7111215,0.00013678,2]
[333587358,1722261041459,-175.923781,0.00013678,2]
[333587359,1722261041469,-151.0,0.00013678,2]
[333587360,1722261041478,-151.0,0.00013678,2]
[333587361,1722261041487,-1485.796612,0.00013678,2]
[333587362,1722261041497,-1485.796612,0.00013678,2]
[333587363,1722261041506,-2274.274554,0.00013678,2]
[333587364,1722261041515,-313.17418395,0.00013688,5]
[333587365,1722261041525,-151.344668,0.00013688,2]
[333587366,1722261041536,-151.0,0.00013688,2]
[333587367,1722261041545,-151.0,0.00013688,2]
[333587368,1722261041554,-151.0,0.00013688,2]
[333587369,1722261041564,-151.0,0.00013688,2]
[333587370,1722261041573,-151.0,0.00013688,2]
[333587371,1722261041582,-151.0,0.00013688,2]
[333587372,1722261041591,-151.0,0.00013688,2]
[333587373,1722261041600,-151.0,0.00013688,2]
[333587374,1722261041610,-151.0,0.00013688,2]
[333587375,1722261041620,-151.0,0.00013688,2]
[333587376,1722261041630,-151.0,0.00013688,2]
[333587377,1722261041641,-237.808297,0.00013688,2]
[333587378,1722261041651,-151.0,0.00013688,2]
[333587379,1722261041661,-151.0,0.00013688,2]
[333587380,1722261041670,-151.0,0.00013688,2]
[333587381,1722261041679,-151.0,0.00013688,2]
[333587382,1722261041689,-498.774569,0.00013688,2]
[333587383,1722261041698,-498.774569,0.00013688,2]
[333587384,1722261041707,-174.404527,0.00013688,2]
[333587385,1722261041716,-174.404527,0.00013688,2]
[333587386,1722261041725,-486.814924,0.00013688,2]
[333587387,1722261041735,-151.0,0.00013688,2]
[333587388,1722261041744,-486.814924,0.00013688,2]
[333587389,1722261041753,-151.0,0.00013688,2]
[333587390,1722261041764,-477.010319,0.00013688,2]
[333587391,1722261041773,-151.0,0.00013688,2]
[333587392,1722261041785,-477.010319,0.00013688,2]
[333587393,1722261041794,-151.0,0.00013688,2]
[333587394,1722261041804,-151.0,0.00013688,2]
[333587395,1722261041813,-1294.137486,0.00013688,2]
[333587396,1722261041824,-1294.137486,0.00013688,2]
[333587397,1722261041833,-151.0,0.00013688,2]
[333587398,1722261041843,-151.0,0.00013688,2]
[333587399,1722261041852,-151.0,0.00013688,2]
[333587400,1722261041862,-1044.519844,0.00013688,2]
[333587401,1722261041875,-1044.519844,0.00013688,2]
[333587402,1722261041886,-151.0,0.00013688,2]
[333587403,1722261041896,-151.0,0.00013688,2]
[333587404,1722261041905,-1485.796612,0.00013688,2]
[333587405,1722261041917,-1485.796612,0.00013688,2]
[333587406,1722261041927,-2274.274554,0.00013688,2]
[333587407,1722261041937,-35136.19001207,0.00013688,2]
[333587432,1722261043275,-41.14226744,0.00013578,2]
[333587434,1722261043299,-2233.13228656,0.00013578,2]
[333587436,1722261043308,-2274.274554,0.00013588,2]
[333587438,1722261043317,-2274.274554,0.00013678,2]
[333587440,1722261043327,-2274.274554,0.00013688,2]
[333587442,1722261043336,-2693.5440514,0.00013688,2]
[333587488,1722261048787,-403.4655861,0.0001212,2]
[333587490,1722261048797,-848.96464521,0.0001212,2]
[333587492,1722261048807,-12630.86976868,0.00013688,2]
[333587499,1722261048866,-85378.24065385,0.00013688,2]
[333587501,1722261048881,-506.67606398,0.00013698,2]
[333587503,1722261048891,-500.0,0.00013698,2]
[333587505,1722261048901,-500.0,0.00013698,2]
[333587507,1722261048911,-507.54583032,0.00013698,2]
[333587509,1722261048921,-507.8376896,0.00013698,2]
[333587512,1722261048931,-500.0,0.00013698,2]
[333587514,1722261048942,-500.0,0.00013698,2]
[333587516,1722261048953,-500.0,0.00013698,2]
[333587518,1722261048962,-500.0,0.00013698,2]
[333587520,1722261048972,-504.4232091,0.00013698,2]
[333587522,1722261048982,-500.0,0.00013698,2]
[333587524,1722261048993,-500.0,0.00013698,2]
[333587526,1722261049003,-500.0,0.00013698,2]
[333587528,1722261049014,-500.0,0.00013698,2]
[333587530,1722261049024,-509.02723048,0.00013698,2]
[333587532,1722261049039,-151.0,0.00013698,2]
[333587533,1722261049048,-151.0,0.00013698,2]
[333587535,1722261049058,-151.0,0.00013698,2]
[333587537,1722261049068,-500.0,0.00013698,2]
[333587540,1722261049078,-151.0,0.00013698,2]
[333587542,1722261049088,-151.0,0.00013698,2]
[333587544,1722261049098,-151.0,0.00013698,2]
[333587546,1722261049108,-500.0,0.00013698,2]
[333587548,1722261049118,-151.0,0.00013698,2]
[333587550,1722261049129,-151.0,0.00013698,2]
[333587552,1722261049138,-500.0,0.00013698,2]
[333587554,1722261049148,-500.0,0.00013698,2]
[333587556,1722261049157,-500.0,0.00013698,2]
[333587558,1722261049168,-500.0,0.00013698,2]
[333587560,1722261049178,-500.0,0.00013698,2]
[333587562,1722261049188,-500.0,0.00013698,2]
[333587564,1722261049197,-500.0,0.00013698,2]
[333587566,1722261049207,-500.0,0.00013698,2]
[333587568,1722261049217,-500.0,0.00013698,2]
[333587570,1722261049227,-500.0,0.00013698,2]
[333587572,1722261049237,-505.32488075,0.00013698,2]
[333587574,1722261049247,-500.0,0.00013698,2]
[333587575,1722261049257,-500.0,0.00013698,2]
[333587577,1722261049267,-500.0,0.00013698,2]
[333587579,1722261049278,-500.0,0.00013698,2]
[333587581,1722261049291,-500.0,0.00013698,2]
[333587583,1722261049301,-500.0,0.00013698,2]
[333587585,1722261049310,-500.0,0.00013698,2]
[333587587,1722261049321,-500.0,0.00013698,2]
[333587589,1722261049331,-500.0,0.00013698,2]
[333587591,1722261049340,-500.0,0.00013698,2]
[333587593,1722261049350,-500.0,0.00013698,2]
[333587595,1722261049360,-500.0,0.00013698,2]
[333587597,1722261049369,-500.0,0.00013698,2]
[333587599,1722261049379,-500.0,0.00013698,2]
[333587601,1722261049388,-500.0,0.00013698,2]
[333587603,1722261049398,-320.51396772,0.00013698,2]
[333587605,1722261049407,-500.0,0.00013698,2]
[333587607,1722261049417,-500.0,0.00013698,2]
[333587609,1722261049427,-500.0,0.00013698,2]
[333587611,1722261049436,-500.0,0.00013698,2]
[333587613,1722261049446,-500.0,0.00013698,2]
[333587615,1722261049456,-500.0,0.00013698,2]
[333587617,1722261049465,-500.0,0.00013698,2]
[333587619,1722261049475,-500.0,0.00013698,2]
[333587621,1722261049485,-500.0,0.00013698,2]
[333587622,1722261049495,-500.0,0.00013698,2]
[333587624,1722261049504,-500.0,0.00013698,2]
[333587627,1722261049515,-500.0,0.00013698,2]
[333587628,1722261049525,-151.0,0.00013698,2]
[333587630,1722261049537,-151.0,0.00013698,2]
[333587632,1722261049547,-500.0,0.00013698,2]
[333587634,1722261049556,-428.2924565,0.00013698,2]
[333587636,1722261049566,-500.0,0.00013698,2]
[333587638,1722261049575,-500.0,0.00013698,2]
[333587640,1722261049585,-500.0,0.00013698,2]
[333587642,1722261049595,-500.0,0.00013698,2]
[333587644,1722261049605,-500.0,0.00013698,2]
[333587646,1722261049614,-500.0,0.00013698,2]
[333587648,1722261049623,-500.0,0.00013698,2]
[333587650,1722261049634,-500.0,0.00013698,2]
[333587652,1722261049644,-500.0,0.00013698,2]
[333587654,1722261049654,-503.19506113,0.00013698,2]
[333587656,1722261049664,-500.0,0.00013698,2]
[333587658,1722261049674,-500.0,0.00013698,2]
[333587660,1722261049684,-500.0,0.00013698,2]
[333587662,1722261049693,-500.0,0.00013698,2]
[333587664,1722261049703,-500.0,0.00013698,2]
[333587666,1722261049712,-500.0,0.00013698,2]
[333587668,1722261049721,-500.0,0.00013698,2]
[333587670,1722261049730,-500.0,0.00013698,2]
[333587672,1722261049740,-500.0,0.00013698,2]
[333587674,1722261049750,-500.0,0.00013698,2]
[333587676,1722261049759,-326.1049079,0.00013698,2]
[333587678,1722261049768,-500.0,0.00013698,2]
[333587680,1722261049777,-500.0,0.00013698,2]
[333587682,1722261049789,-526.55122094,0.00013698,2]
[333587684,1722261049798,-500.0,0.00013698,2]
[333587686,1722261049808,-500.0,0.00013698,2]
[333587688,1722261049818,-500.0,0.00013698,2]
[333587691,1722261049829,-500.0,0.00013698,2]
[333587693,1722261049840,-500.0,0.00013698,2]
[333587695,1722261049850,-509.09073126,0.00013698,2]
[333587697,1722261049862,-464.10296332,0.00013698,2]
[333587699,1722261049873,-500.0,0.00013698,2]
[333587701,1722261049882,-500.0,0.00013698,2]
[333587703,1722261049892,-151.0,0.00013698,2]
[333587705,1722261049902,-500.0,0.00013698,2]
[333587707,1722261049912,-500.0,0.00013698,2]
[333587709,1722261049921,-500.0,0.00013698,2]
[333587711,1722261049930,-507.62093713,0.00013698,2]
[333587713,1722261049940,-500.0,0.00013698,2]
[333587715,1722261049952,-500.0,0.00013698,2]
[333587717,1722261049961,-500.0,0.00013698,2]
[333587719,1722261049971,-500.0,0.00013698,2]
[333587721,1722261049980,-500.0,0.00013698,2]
[333587723,1722261049989,-500.0,0.00013698,2]
[333587725,1722261049999,-500.0,0.00013698,2]
[333587727,1722261050008,-503.6451336,0.00013698,2]
[333587729,1722261050018,-500.0,0.00013698,2]
[333587731,1722261050028,-500.0,0.00013698,2]
[333587733,1722261050039,-500.0,0.00013698,2]
[333587735,1722261050048,-500.0,0.00013698,2]
[333587737,1722261050056,-648.26335558,0.00013698,2]
[333587739,1722261050065,-500.0,0.00013698,2]
[333587741,1722261050075,-500.0,0.00013698,2]
[333587743,1722261050085,-506.96099915,0.00013698,2]
[333587745,1722261050095,-500.0,0.00013698,2]
[333587747,1722261050105,-500.0,0.00013698,2]
[333587749,1722261050115,-151.0,0.00013698,2]
[333587751,1722261050126,-151.0,0.00013698,2]
[333587753,1722261050136,-151.0,0.00013698,2]
[333587755,1722261050145,-500.0,0.00013698,2]
[333587757,1722261050154,-500.0,0.00013698,2]
[333587759,1722261050163,-500.0,0.00013698,2]
[333587761,1722261050173,-263.6496021,0.00013698,2]
[333587763,1722261050183,-500.0,0.00013698,2]
[333587765,1722261050192,-151.0,0.00013698,2]